Cogmind - Beta 15 @@@ ROGUE MODE // 2025.08.15 @ 09:44:33 Player: beans Result: Destroyed by G-34 Mercenary with Small Laser Performance ------------- Evolutions (1) 500 Regions Visited (4) 800 Robots Destroyed (38) 190 Value Destroyed (621) 621 Prototype IDs (8) 160 Alien Tech Used (0) 0 Bonus (405) 405 TOTAL SCORE: 2676 Bonus ------- Follower Combat Kills 405 Cogmind --------- Core Integrity 0/400 Matter 468/500 Energy 99/100 System Corruption 4% Temperature Cool (6) Movement Core (150) Ox2 Location -9/Storage Parts ------- > --- POWER (1) -------- (None) > --- PROPULSION (2) --- (None) > --- UTILITY (4) ------ High-capacity Matter Pod Experimental Targeting Computer > --- WEAPON (2) ------- Improved Assault Rifle > --- INVENTORY (5) ---- Drone Bay (2/2) Splice Drone Bay (6/6) Small Laser Peak State ------------ > --- POWER ------------ (None) > --- PROPULSION ------- Hover Unit Improved Flight Unit > --- UTILITY ---------- High-capacity Matter Pod Experimental Targeting Computer Core Shielding > --- WEAPON ----------- Improved EM Shotgun Heavy Assault Rifle > --- INVENTORY -------- Drone Bay Splice Drone Bay Improved Medium Laser [Rating: 18] Favorites ----------- Power Ion Engine Engine Ion Engine Propulsion Light Treads Treads Light Treads Hover Unit Hover Unit Flight Unit Improved Flight Unit Utility Core Shielding Device Splice Drone Bay Storage High-capacity Matter Pod Processor Experimental Targeting Computer Protection Core Shielding Weapon EM Pulse Gun Energy Gun EM Pulse Gun Energy Cannon Advanced Beam Cannon Ballistic Gun Heavy Assault Rifle Build | -11 -10 -10 -9 -9 ------- Run | Yrd Mat Min Mat Sto Slots Evolved 2 | . . . 2 . Power . | . . . . . Propulsion . | . . . . . Utility 2 | . . . 2 . Weapon . | . . . . . Parts Attached 25 | 4 4 1 . 16 Power 1 | 1 . . . . Engine 1 | 1 . . . . Core . | . . . . . Reactor . | . . . . . Propulsion 7 | 2 . . . 5 Treads 2 | 2 . . . . Leg . | . . . . . Wheel . | . . . . . Hover 4 | . . . . 4 Flight 1 | . . . . 1 Utility 6 | . 2 1 . 3 Device 1 | . . 1 . . Storage 2 | . . . . 2 Processor 1 | . . . . 1 Hackware . | . . . . . Protection 2 | . 2 . . . Artifact . | . . . . . Weapon 11 | 1 2 . . 8 Energy Gun 7 | 1 2 . . 4 Energy Cannon 1 | . . . . 1 Ballistic Gun 3 | . . . . 3 Ballistic Cannon . | . . . . . Launcher . | . . . . . Special Weapon . | . . . . . Impact Weapon . | . . . . . Slashing Weapon . | . . . . . Piercing Weapon . | . . . . . Special Melee Weapon . | . . . . . Unidentified Prototypes 8 | . . 1 . 7 Parts Lost 17 | . 1 5 . 11 Power 2 | . . 1 . 1 Propulsion 4 | . . 1 . 3 Utility 3 | . . 1 . 2 Weapon 8 | . 1 2 . 5 Highest Loss Streak 6 | . 1 3 . 6 To Critical Strikes . | . . . . . Average Backups 1 | . . 2 3 2 Power . | . . . . . Propulsion . | . . . . . Utility 1 | . . 2 3 1 Weapon . | . . . . 1 Tool/Special . | . . . . . Unused Backups 2 | . . . . 2 Power . | . . . . . Propulsion . | . . . . . Utility 2 | . . . . 2 Weapon . | . . . . . Tool/Special . | . . . . . Average Slot Usage (%) 72 | . 82 85 22 62 Engine 6 | . 14 13 . . Treads 12 | . 28 23 11 . Storage 10 | . . . . 20 Processor 5 | . . . . 10 Protection 13 | . 11 26 11 10 Energy Gun 14 | . 27 19 . 5 Ballistic Gun 8 | . . . . 14 Peak Build Rating 18 | 4 7 13 2 18 Average Rating 9 | 3 5 6 2 13 On Entrance 3 | . 4 7 2 2 Naked Turns . | . . . . . Heaviest Build 15 | 7 11 11 1 15 Greatest Support 40 | 40 40 40 3 12 Greatest Overweight (x) 4 | . . 2 . 4 Average Overweight (x) 1 | . . . . 3 Largest Inventory Capacity 5 | 5 5 5 5 5 Average Capacity 5 | 5 5 5 5 5 Most Carried 4 | 2 2 4 3 4 Average Carried 1 | . . 2 3 2 Final Capacity 5 | 5 5 5 5 5 Final Carried 3 | . 2 3 3 3 Class Distribution -------------------- 92% | Mutant 7% | Commander-Mutant Dominant Class ---------------- Mutant | -10/Materials Mutant | -10/Mines Mutant | -9/Materials Mutant | -9/Storage Resources | -11 -10 -10 -9 -9 ----------- Run | Yrd Mat Min Mat Sto Matter Collected 1196 | 176 152 374 . 494 Remotely . | . . . . . Salvage Created 1398 | . 498 40 . 860 Parts 94 | . 34 3 . 57 Haulers Intercepted 5 | . 1 . . 4 Recyclers Shooed 3 | . 1 . . 2 Parts Field Recycled . | . . . . . Retrieved Matter . | . . . . . Parts Self-Destructed . | . . . . . Prevented . | . . . . . Kills | -11 -10 -10 -9 -9 ------- Run | Yrd Mat Min Mat Sto Combat Hostiles Destroyed 20 | . 9 1 . 10 Guns 19 | . 9 1 . 9 AOE 1 | . . . . 1 Classes Destroyed 12 | . 8 1 . 3 Worker 3 | . 1 . . 2 Builder 4 | . 3 . . 1 Tunneler 2 | . 1 1 . . Hauler 5 | . 1 . . 4 Recycler 2 | . . . . 2 Operator 1 | . 1 . . . Watcher 2 | . 1 . . 1 Swarmer 8 | . 6 . . 2 Grunt 7 | . 3 . . 4 Protector 1 | . . . . 1 Sentry 3 | . . . . 3 Assembled 1 | . . 1 . . Best Kill Streak 5 | . 5 1 . 4 Combat Bots Only 3 | . 3 1 . 3 Max Kills in Single Turn 2 | . 1 1 . 2 Gunslinging . | . . . . . Exploded 1 | . . . . 1 Melee . | . . . . . Uniques/NPCs Destroyed . | . . . . . Combat | -11 -10 -10 -9 -9 -------- Run | Yrd Mat Min Mat Sto Hostile Shots Fired 186 | . 53 24 . 109 Missed 52 | . 15 8 . 29 Hits 134 | . 38 16 . 80 Melee 6 | . . 6 . . Projectile 128 | . 38 10 . 80 Critical Strikes 3 | . 1 . . 2 Part Disruptions 1 | . . 1 . . Damage Taken 1832 | . 416 292 . 1124 Core 568 | . 74 85 . 409 Absorbed by Shields . | . . . . . Redirected to Shielding 66 | . . 16 . 50 Core Remaining (%) 68 | 100 . 36 . . Volleys Fired 137 | 4 46 5 . 82 Largest 2 | 1 2 2 . 2 Hottest 101 | 40 80 80 . 101 Shots Fired 239 | 4 92 10 . 133 Gun 239 | 4 92 10 . 133 Cannon . | . . . . . Launcher . | . . . . . Special . | . . . . . Kinetic 92 | . . . . 92 Thermal 23 | . . . . 23 Explosive . | . . . . . Electromagnetic 124 | 4 92 10 . 18 Robot Hit Streak 12 | 1 7 1 . 12 Robot Miss Streak 4 | 1 4 3 . 3 Penetration Max . | . . . . . Secondary Targets 3 | . 1 . . 2 Max Gunslinging Chain 1 | . 1 . . 1 Shots Hit Robots 141 | 2 49 3 . 87 Core Hits 52 | 1 21 2 . 28 Critical Kills . | . . . . . Critical Parts Destroyed . | . . . . . Critical Strikes 4 | . 2 1 . 1 Burn 1 | . . . . 1 Corrupt 3 | . 2 1 . . Melee Attacks . | . . . . . Impact . | . . . . . Slashing . | . . . . . Piercing . | . . . . . Sneak Attacks . | . . . . . Combat Hostiles . | . . . . . Follow-up Attacks . | . . . . . Damage Inflicted 2387 | 27 789 37 . 1534 Guns 2176 | 27 681 37 . 1431 Cannons . | . . . . . Explosions 211 | . 108 . . 103 Melee . | . . . . . Ramming . | . . . . . Kinetic 1017 | . . . . 1017 Thermal 450 | . 108 . . 342 Explosive . | . . . . . Electromagnetic 920 | 27 681 37 . 175 Impact . | . . . . . Slashing . | . . . . . Piercing . | . . . . . Highest Corruption 10 | . 2 10 . 4 Average Corruption 3 | . 2 2 . 4 Corruption Purged . | . . . . . Corruption Blocked . | . . . . . Effects 36 | . 5 8 . 23 Message Errors 8 | . 1 3 . 4 Matter Fused 12 | . 2 1 . 9 Heat Flow Errors 4 | . . 1 . 3 Energy Discharges 3 | . . . . 3 Data Loss (minor) 5 | . 2 . . 3 Data Loss (major) 2 | . . 2 . . Alerts 1 | . . 1 . . Weapon Failures 1 | . . . . 1 Overload Shots . | . . . . . Overflow Damage 2 | . . . . 2 Projectiles . | . . . . . Explosions 2 | . . . . 2 Melee . | . . . . . Knockbacks . | . . . . . Impact . | . . . . . Kinetic . | . . . . . Secondary . | . . . . . Self-Inflicted Damage 64 | . 17 . . 47 Shots 2 | . 1 . . 1 Rammed . | . . . . . Targets Rammed . | . . . . . Kicked . | . . . . . Crushed . | . . . . . Highest Temperature 188 | . 188 177 . 161 Average Temperature 44 | . 47 45 . 36 Received Heat Transfer 712 | . 132 100 . 480 Siege Activations . | . . . . . Martial Activations . | . . . . . Shielding Activations . | . . . . . Robots Disrupted . | . . . . . Combat Hostiles . | . . . . . Robots Corrupted 1 | . 1 . . . Combat Hostiles . | . . . . . Parts Fried 2 | . 1 . . 1 Impact Corruptions . | . . . . . Robots Melted . | . . . . . Combat Hostiles . | . . . . . Parts Melted . | . . . . . Heat Transferred 1003 | . 150 . . 853 Parts Sabotaged . | . . . . . Parts Stolen . | . . . . . Parts Stripped . | . . . . . Power Chain Reactions 4 | . 3 . . 1 Alert | -11 -10 -10 -9 -9 ------- Run | Yrd Mat Min Mat Sto Maximum Alert Level 1 | . . . . 1 Low Security (%) 86 | 100 100 100 100 74 Level 1 13 | . . . . 25 Level 2 . | . . . . . Level 3 . | . . . . . Level 4 . | . . . . . Level 5 . | . . . . . High Security . | . . . . . Max Security . | . . . . . Peak Influence 301 | . 135 5 . 301 Initial . | . . . . . Average 91 | . 71 . . 134 Influence Increases 1240 | . 311 5 . 924 Destroy 0b10 Robot/C 700 | . 180 . . 520 Destroy 0b10 Robot/NC 100 | . 40 5 . 55 Destroy Leader 194 | . 44 . . 150 Allied During Kill 156 | . . . . 156 Successful Hack 7 | . . . . 7 Disable Machine 15 | . . . . 15 Destroy Structure 23 | . 17 . . 6 Lose Combat Pursuer 45 | . 30 . . 15 Influence Decreases 1126 | . 311 5 . 810 Time Decay 816 | . 301 5 . 510 Lost Part 110 | . 10 . . 100 Lost Ally 200 | . . . . 200 Squads Dispatched 5 | . 1 . . 4 Investigation 1 | . . . . 1 Extermination . | . . . . . Reinforcement 2 | . 1 . . 1 Assault 2 | . . . . 2 Garrison . | . . . . . Intercept . | . . . . . Searches Triggered . | . . . . . Construction Impeded . | . . . . . Haulers Reinforced . | . . . . . Active Scanning Responses . | . . . . . Cargo Convoy Interrupts . | . . . . . Stealth | -11 -10 -10 -9 -9 --------- Run | Yrd Mat Min Mat Sto Distress Signals 2 | . 2 . . . Communications Jammed . | . . . . . Distress Signals . | . . . . . Times Spotted 57 | . 15 5 . 37 Peak Tracking Total 9 | . 3 3 . 9 Tactical Retreats 3 | . 2 . . 1 Traps | -11 -10 -10 -9 -9 ------- Run | Yrd Mat Min Mat Sto Traps Triggered 2 | . 1 . . 1 Indirectly . | . . . . . Trap Hack Attempts . | . . . . . Triggered . | . . . . . Disarmed . | . . . . . Reprogrammed . | . . . . . Reused . | . . . . . Traps Extracted . | . . . . . Installed . | . . . . . Triggered . | . . . . . Machines | -11 -10 -10 -9 -9 ---------- Run | Yrd Mat Min Mat Sto Machines Disabled 1 | . . . . 1 Max in Single Turn 1 | . . . . 1 Machines Repaired . | . . . . . Machines Dismantled . | . . . . . Machines Sabotaged . | . . . . . Overloaded Fab Kills . | . . . . . Hacking | -11 -10 -10 -9 -9 --------- Run | Yrd Mat Min Mat Sto Machines Accessed 4 | . . 1 . 3 Terminals 3 | . . . . 3 Fabricators . | . . . . . Repair Stations . | . . . . . Recycling Units . | . . . . . Scanalyzers . | . . . . . Garrison Access . | . . . . . Total Hacks 5 | . . 1 . 4 Successful 4 | . . 1 . 3 Failed 1 | . . . . 1 Catastrophic . | . . . . . Database Lockouts . | . . . . . Manual . | . . . . . Terminals 4 | . . . . 4 Fabricators . | . . . . . Repair Stations . | . . . . . Recycling Units . | . . . . . Scanalyzers . | . . . . . Garrison Access . | . . . . . Terminal Hacks 4 | . . 1 . 3 Record 1 | . . . . 1 Open Door 3 | . . 1 . 2 Fabricator Hacks . | . . . . . Repair Station Hacks . | . . . . . Recycling Unit Hacks . | . . . . . Scanalyzer . | . . . . . Garrison Access Hacks . | . . . . . Unauthorized Hacks . | . . . . . Terminals . | . . . . . Fabricators . | . . . . . Repair Stations . | . . . . . Recycling Units . | . . . . . Scanalyzers . | . . . . . Garrison Access . | . . . . . Data Cores Recovered . | . . . . . Used . | . . . . . Hacking Detections . | . . . . . Full Trace Events . | . . . . . Feedback Events . | . . . . . Feedback Blocked . | . . . . . Robot Schematics Acquired . | . . . . . Robots Built . | . . . . . Authchips . | . . . . . Time . | . . . . . Total Robot Build Rating . | . . . . . Part Schematics Acquired . | . . . . . Parts Built . | . . . . . Authchips . | . . . . . Time . | . . . . . Total Part Build Rating . | . . . . . Parts Repaired . | . . . . . Time . | . . . . . Parts Recycled . | . . . . . Recycled Matter . | . . . . . Retrieved Matter . | . . . . . Retrieved Components . | . . . . . Parts Scanalyzed . | . . . . . Part Schematics Acquired . | . . . . . Parts Damaged . | . . . . . Bothacking | -11 -10 -10 -9 -9 ------------ Run | Yrd Mat Min Mat Sto Used RIF Installer . | . . . . . Robots Hacked . | . . . . . Non-combat . | . . . . . Combat . | . . . . . Robot Hacks Applied . | . . . . . Relay Couplers Released . | . . . . . Fabnet Peak Effective % . | . . . . . Robots Rewired . | . . . . . Allies Hacked . | . . . . . Hacks Repelled . | . . . . . Allies | -11 -10 -10 -9 -9 -------- Run | Yrd Mat Min Mat Sto Total Allies 12 | . . . . 12 Largest Group 10 | . . . . 10 Highest-Rated Group 88 | . . . . 88 Highest-Rated Ally 31 | . . . . 31 Total Orders 1 | . . 1 . . RETURN 1 | . . 1 . . Ally Attacks 111 | . . . . 111 Total Damage 1074 | . . . . 1074 Kills 18 | . . . . 18 Allies Corrupted . | . . . . . Allies Melted . | . . . . . Intel | -11 -10 -10 -9 -9 ------- Run | Yrd Mat Min Mat Sto Active Infowar (turns) . | . . . . . Robot Analysis Total . | . . . . . Derelict Logs Recovered . | . . . . . Drone Launches 6 | . . 6 . . Drone Recoveries 6 | . . 6 . . Exploration | -11 -10 -10 -9 -9 ------------- Run | Yrd Mat Min Mat Sto Turns Passed 2761 | 57 740 473 5 1486 Spaces Moved 1245 | 34 367 256 9 579 Core 658 | 11 . 82 9 556 Treads 564 | 23 367 174 . . Legs . | . . . . . Wheels . | . . . . . Hover 23 | . . . . 23 Flight . | . . . . . Fastest Speed 50 | 50 160 50 50 50 Average Speed 179 | 124 160 148 50 210 Slowest Speed 250 | 160 160 160 50 250 Overloaded Moves . | . . . . . Propulsion Burnouts . | . . . . . Robots Hopped . | . . . . . Potential Cave-ins . | . . . . . Cave-ins Triggered . | . . . . . Exploration Rate (%) 34 | 4 55 38 3 71 Regions Visited 4 Branch Regions 2 Pre-discovered Areas . | . . . . . Known Exits Taken . | . . . . . Unknown Exits Taken 4 | 1 1 1 1 . Scrap Searched 1 | . . 1 . . Spaces Dug . | . . . . . Terrain Destroyed 20 | . 16 . . 4 Melee . | . . . . . Projectile . | . . . . . AOE 20 | . 16 . . 4 Terrain Rammed . | . . . . . Walls Destroyed . | . . . . . Machines Disabled . | . . . . . Actions | -11 -10 -10 -9 -9 --------- Run | Yrd Mat Min Mat Sto Total 1536 | 45 428 339 8 716 Wait 87 | . 6 75 . 6 Move 1241 | 33 366 255 8 579 Hop . | . . . . . Pick Up 30 | 4 6 1 . 19 Fast Attach . | . . . . . Attach 27 | 4 4 1 . 18 Detach 2 | . . 1 . 1 Swap 5 | . . 1 . 4 Drop 7 | . . . . 7 Fire 137 | 4 46 5 . 82 Melee . | . . . . . Ram . | . . . . . Kick . | . . . . . Crush . | . . . . . Escape Stasis . | . . . . . Rewire . | . . . . . Trap . | . . . . . Miscellaneous . | . . . . . Route ------- -11/Scrapyard -10/Materials (discovered 2 exits: [*Mat] / *Min) -10/Mines -9/Materials -9/Storage (discovered 1 exit: [*Mat]) History --------- Turn | Location | Event 3 | -11/Scrapyard | Discovered new exit (range 15) 58 | -11/Scrapyard | Entered Materials 234 | -10/Materials | Discovered new exit (range 6) 307 | -10/Materials | Build established: Mutant 774 | -10/Materials | Discovered new exit (range 8) 798 | -10/Materials | Entered Mines 852 | -10/Mines | A weapon hastily lodged in a ceiling crevice suddenly fell to the ground 877 | -10/Mines | Assembled infested the area 882 | -10/Mines | Assisted by a Guerilla fighting off Assembled 1020 | -10/Mines | Found the Drone Emporium 1027 | -10/Mines | Found Prototype Device 1028 | -10/Mines | Identified Splice Drone Bay 1157 | -10/Mines | Lost 3 parts (1n2w) 1229 | -10/Mines | Core integrity fell below 50% 1262 | -10/Mines | System corruption reached 10% 1267 | -10/Mines | Discovered new exit (range 6) 1271 | -10/Mines | Entered Materials 1271 | -9/Materials | Evolved 2 slots: Utility x2 1271 | -9/Materials | Discovered new exit (range 8) 1276 | -9/Materials | Entered Storage 1306 | -9/Storage | Assisted by bots powering up and referring to "LRC-V3" 1318 | -9/Storage | Found Prototype Processor 1319 | -9/Storage | Identified Exp. Targeting Computer 1492 | -9/Storage | Lost 4 allies 1724 | -9/Storage | Discovered new exit (range 14) 2687 | -9/Storage | Met a pair of Derelict thieves 2723 | -9/Storage | Core integrity fell below 50% 2747 | -9/Storage | Core integrity fell below 20% 2762 | -9/Storage | Destroyed by G-34 Mercenary with Small Laser Last Messages --------------- Hover Unit destroyed. Acquired 40 matter. G-34 Mercenary suffers critical hit (Burn). G-34 Mercenary destroyed. Imp. EM Shotgun destroyed. K-01 Serf collects debris. G-34 Mercenary destroyed. Hover Unit destroyed. K-01 Serf collects debris. System corrupted: Heat flow error (+174). Acquired Prototype Ballistic Gun. Identified Imp. Assault Rifle. K-01 Serf collects debris. Acquired Sml. Laser. K-01 Serf collects debris. Critical hit (Burn: +37). K-01 Serf collects debris. Imp. Medium Laser destroyed. K-01 Serf collects debris. G-47 Trooper destroyed. Map ----- +----------------------------------------------------+ | #=%* #???# #??#####??##?????# ! """ R"#?# | | ##+######### #??# ??? ????## [ """ """#?# | | # ## % ##?# ???? #???# = = """ ###### | | # =[# %#?#%"???? #???## * #??# / | | # """""%=# ### "????" ################?# # | | # """""[[+% % %+ "????" # T """ """ ### ##+ | | # """""%%# ###%"????" # """ "" | | # [%=**# % #?# """"?" #? """ "" ### | | # *%=*#######?# """ #?? ##?# | | #%= == #???????# #? ! ##??# | | #=##"T"####??????######+##+######+#######???# ### | | ####"""#?????????# =#????## ## | | ???#####?????????# =!=###### # | | ?????????????????# !%[%!!%[!* + | | ??????????????????#######################*### # | | ????????????????????????????????????????#=#?## ## | | ????????????????????????????????????????# #??# ## | | ????????????????????????????????????????# #??# ### | | ????????######+########################## ####+### | | ??????? # | | ??????? *= % = # "" | | ??????? %!g%% % %= # ""? | | ??????????????+########[g!######=####### # ""?? | | ?????????????????????##!%k!=#??#*#?????# + "??? | | ?????????????????????#"%k!g=#??# #?????# # "??? | | ?????????????????????###"@"##??# #?????# # "??? | | ?????????????????????# !g*!#??# #?????# # ?? | | ?????????????????????#=== #??# #?????# ######? | | ?????????????????????# = #?##+####### #?????? | | ?????????????????????#= = #?# # #?????? | | ?????????????????????########?# # #?????? | | ??????????????????????????????# """"" # #?????? | | ??????????????????????????????# "???" # #?????? | | ??????????????????????????????# "??"" + #?????? | | ??????????????????????????????# ""??" # #?????? | | ??????????????????????????????# "???" # #?????? | | ??????????????????????????????# """"" # #?????? | | ??????????????????????????????# # < #?????? | | ??????????????????????????????########## #?????? | | ???????????????????????????????????????#####?????? | | ?????????????????????????????????????????????????? | | ?????????????????????????????????????????????????? | | ?????????????????????????????????????????????????? | | ?????????????????????????????????????????????????? | | ?????????????????????????????????????????????????? | | ?????????????????????????????????????????????????? | | ?????????????????????????????????????????????????? | | ?????????????????????????????????????????????????? | | ?????????????????????????????????????????????????? | | ?????????????????????????????????????????????????? | +----------------------------------------------------+ Best States ------------- Heat Dissipation 28 Energy Generation 10 Energy Capacity 250 Matter Stores 700 Matter Capacity 700 Sight Range 16 Terrain Scan Density 10 Core Shielding 20 Evasion (%) 52 Targeting Accuracy 12 Recoil Reduction 2 Item Schematics ----------------- None Robot Schematics ------------------ None Fabricated ------------ Nothing Repaired ---------- Nothing Alien Tech Used ----------------- None Achievements -------------- None Challenges ------------ None Game ------ Seed DisintegrationForceClaws Manual? 0 Play Time 00:16:04 Cumulative 89.5 hours Start 2025.08.14 @ 22:45:45 End 2025.08.15 @ 09:44:33 Sessions 2 Manual Loads 0 Difficulty Rogue Special Mode None Game No. 353 Rogue 353 Adventurer 0 Explorer 0 Win Type - Total 0 Types 0/0/0/0/0/0/0/0/0/0 Lore% 37 Gallery% 37 Achievement% 30 Wizard Run 0 Options --------- Layout 2 ASCII 0 Keyboard 0 Movement Mouse Keybinds 0 Fullscreen 2 Font 24/Smallcaps Map View 50x44 Zoom Use 0% Tactical HUD 0 Map Filters NONE Filters NONE Steam 1 RUN: c9b46853-d5a6-4114-9f07-fb12b2f3f5ce